bitfinex/quotes_ETHUSD_20240612
["timestamp","ask_amount","ask_price","bid_price","bid_amount"]
[1718158608547,5.28244,3492.8,3492.0,1.19894744]
[1718158610619,2.86333,3492.5,3492.0,0.17033222]
[1718158611583,2.86345,3492.3,3492.0,0.17033222]
[1718158612350,2.4331,3492.4,3491.5,7.252]
[1718158612351,2.86375,3492.0,3491.5,7.252]
[1718158612569,2.86375,3492.0,3491.1,8.397495]
[1718158612767,2.86375,3492.0,3491.6,0.1707513]
[1718158612942,2.86375,3492.0,3491.2,4.3727935]
[1718158613127,2.86375,3492.0,3491.7,0.17072352]
[1718158613328,2.86375,3492.0,3491.2,4.3727935]
[1718158613530,2.86375,3492.0,3491.8,0.17069575]
[1718158613862,2.86375,3492.0,3491.2,4.3727935]
[1718158614070,2.86375,3492.0,3491.9,0.17066796]
[1718158614769,2.86375,3492.0,3491.3,4.56347285]
[1718158615135,2.86375,3492.0,3491.3,1.56347285]
[1718158616086,2.313,3491.9,3491.3,1.56347285]
[1718158616455,2.86386,3491.8,3491.3,1.56347285]
[1718158617392,2.86386,3491.8,3491.1,7.252]
[1718158617681,2.86386,3491.8,3491.0,4.009967]
[1718158617852,2.86386,3491.8,3491.1,3.55]
[1718158618268,2.86386,3491.8,3491.1,0.55]
[1718158618573,2.8641,3491.5,3491.0,1.145527]
[1718158618775,2.8641,3491.5,3491.1,0.8397527]
[1718158619139,2.8641,3491.5,3490.9,1.145577]
[1718158619338,2.8641,3491.5,3490.8,7.252]
[1718158619577,2.8641,3491.5,3490.9,0.55]
[1718158619778,2.8641,3491.5,3490.8,1.14562]
[1718158619963,2.2659,3491.4,3490.6,3.0]
[1718158620176,2.2659,3491.4,3490.7,1.86169]
[1718158620578,5.17345,3492.1,3491.0,2.4382]
[1718158620882,5.29694,3492.5,3491.2,2.86431]
[1718158621086,5.29694,3492.5,3491.5,2.86403]
[1718158621302,5.29694,3492.5,3491.6,1.4002005]
[1718158622402,2.4336,3492.5,3491.7,2.86391]
[1718158622625,2.4336,3492.5,3491.8,0.6072703]
[1718158624012,0.44806318,3492.7,3492.0,2.86367]
[1718158624186,0.44806318,3492.7,3492.1,0.55]
[1718158624388,0.44806318,3492.7,3492.1,0.946367]
[1718158625174,2.86321,3492.6,3491.7,7.252]
[1718158625570,2.4396,3492.5,3491.7,7.252]
[1718158626002,2.4396,3492.5,3491.8,0.1704841]
[1718158632629,2.4396,3492.5,3491.9,0.05727021]
[1718158632804,2.4396,3492.5,3491.9,0.22785944]
[1718158633113,2.4396,3492.5,3491.9,1.2943284]
[1718158634218,2.4396,3492.5,3492.2,2.8635]
[1718158634927,2.4396,3492.5,3492.3,0.17047815]
[1718158635306,2.4396,3492.5,3492.2,2.8635]
[1718158635508,2.4396,3492.5,3492.4,0.17045039]
[1718158636025,2.4396,3492.5,3492.2,2.8635]
[1718158636231,2.4396,3492.5,3492.4,0.17045039]
[1718158636412,2.4396,3492.5,3492.2,2.8635]
[1718158636584,2.4396,3492.5,3492.4,0.17045039]
[1718158636786,2.4396,3492.5,3492.2,2.8635]
[1718158637008,2.4396,3492.5,3492.3,0.17047815]
[1718158637214,2.4396,3492.5,3492.2,2.8635]
[1718158637420,2.4396,3492.5,3492.4,0.17045039]
[1718158637729,2.4396,3492.5,3492.2,2.8635]
[1718158637929,2.4396,3492.5,3492.4,0.17045039]
[1718158638391,2.4396,3492.5,3492.2,3.2564969]
[1718158638600,2.4396,3492.5,3492.3,0.17047815]
[1718158638786,2.4396,3492.5,3492.2,2.8635]
[1718158638988,2.4396,3492.5,3492.3,0.17047815]
[1718158639308,2.4396,3492.5,3492.2,2.8635]
[1718158639618,2.4396,3492.5,3492.3,0.17047815]
[1718158639996,2.4396,3492.5,3492.2,2.8635]
[1718158640182,2.4396,3492.5,3492.3,0.17047815]
[1718158640380,2.4396,3492.5,3492.2,2.8635]
[1718158640723,2.4396,3492.5,3492.3,0.17047815]
[1718158641017,2.4396,3492.5,3492.2,2.8635]
[1718158641518,2.4396,3492.5,3492.3,0.17047817]
[1718158641898,2.4396,3492.5,3492.2,2.8635]
[1718158642096,2.4396,3492.5,3492.4,0.1704504]
[1718158642725,2.4396,3492.5,3491.8,2.86377]
[1718158642921,2.4396,3492.5,3492.4,0.1704504]
[1718158643215,2.4396,3492.5,3491.8,2.86377]
[1718158643426,2.4396,3492.5,3492.4,0.17049697]
[1718158643586,2.4396,3492.5,3491.8,2.86377]
[1718158643981,2.4396,3492.5,3491.7,7.252]
[1718158644194,3.16280948,3492.5,3491.9,0.17063582]
[1718158644536,3.75532214,3492.5,3492.0,0.17060804]
[1718158644888,3.75532214,3492.5,3491.7,7.252]
[1718158645089,3.75532214,3492.5,3491.8,0.17070219]
[1718158646399,3.03211266,3492.5,3491.8,0.17070219]
[1718158646717,2.4396,3492.5,3491.8,0.17070219]
[1718158649899,2.4396,3492.5,3492.0,2.86368]
[1718158650113,2.4396,3492.5,3492.1,0.17058027]
[1718158661119,5.3029,3492.5,3492.1,0.17058027]
[1718158661451,1.31046024,3492.4,3491.7,7.252]
[1718158661611,0.59251266,3492.4,3491.7,7.252]
[1718158661817,5.89541266,3492.5,3491.8,0.17062866]
[1718158662212,5.89541266,3492.5,3491.8,1.00662866]
[1718158664934,5.89541266,3492.5,3491.8,3.87042866]
[1718158665142,0.59251266,3492.4,3491.8,3.03442866]
[1718158665342,3.03211266,3492.5,3492.0,0.836]
[1718158665650,3.03211266,3492.5,3492.1,0.17054534]
[1718158665851,0.59251266,3492.5,3492.2,0.836]
[1718158666063,0.59251266,3492.5,3492.3,0.17058297]
[1718158666367,0.59251266,3492.5,3492.0,3.69961]
[1718158666573,0.59251266,3492.5,3492.4,0.1705552]
[1718158666733,0.59251266,3492.5,3492.0,3.69961]
[1718158667219,0.59251266,3492.5,3492.1,0.17063851]
[1718158667977,0.59251266,3492.8,3492.4,0.836]
[1718158668126,0.60251266,3492.9,3492.7,2.86311]
[1718158668437,0.01,3492.9,3492.8,1.29260053]
[1718158669462,0.01,3492.9,3492.8,4.29260053]
[1718158669848,0.01,3492.9,3492.8,3.45660053]
[1718158673069,0.01,3492.9,3492.8,4.29260053]
[1718158675554,0.01,3492.9,3492.8,4.84260053]
[1718158681078,0.01,3492.9,3492.8,7.14500053]
[1718158681378,0.01,3492.9,3492.8,6.30900053]
[1718158681574,0.01,3492.9,3492.8,7.14500053]
[1718158683391,0.01,3492.9,3492.8,4.00660053]
[1718158683558,0.01,3492.9,3492.8,4.55628953]
[1718158684082,0.01,3492.9,3492.8,3.72028953]
[1718158684284,0.01,3492.9,3492.8,4.55628953]
[1718158684601,0.01,3492.9,3492.8,3.72028953]
[1718158684899,0.01,3492.9,3492.8,4.55628953]
[1718158685269,0.01,3492.9,3492.8,3.72028953]
[1718158685470,0.01,3492.9,3492.8,4.55628953]
[1718158686291,0.01,3492.9,3492.8,4.00628953]
[1718158688594,0.01,3492.9,3492.8,4.69322948]
[1718158690274,0.01,3492.9,3492.8,5.24322948]
[1718158694205,0.01,3492.9,3492.8,6.38815248]
[1718158698515,0.01,3492.9,3492.8,5.55215248]
[1718158698728,0.01,3492.9,3492.8,5.70121253]
[1718158699034,2.2698,3492.9,3492.8,0.17028953]
[1718158700382,2.2698,3492.9,3492.8,3.17028953]
[1718158701784,0.01,3492.9,3492.8,3.17028953]
[1718158703016,0.01,3492.9,3492.8,4.00628953]
[1718158703515,0.01,3492.9,3492.8,5.24322948]
[1718158708396,0.005,3493.5,3493.3,2.86255]
[1718158708744,0.005,3493.5,3493.4,4.44324366]
[1718158709027,0.005,3493.5,3493.4,4.60631114]
[1718158709718,0.005,3493.5,3493.4,3.71306748]
[1718158710047,0.005,3493.5,3493.4,5.26566174]
[1718158711695,0.005,3493.5,3493.4,4.42966174]
[1718158712022,0.005,3493.5,3493.4,5.85598686]
[1718158712224,0.005,3493.5,3493.4,5.26566174]
[1718158712725,0.005,3493.5,3493.4,5.85598686]
[1718158715104,0.005,3493.5,3493.4,5.01998686]
[1718158715412,0.005,3493.5,3493.4,5.26566174]
[1718158719715,0.005,3493.5,3493.4,7.74496174]
[1718158719907,0.005,3493.5,3493.4,8.33528686]
[1718158720324,0.005,3493.5,3493.4,7.74496174]
[1718158721027,0.005,3493.5,3493.4,8.33935141]
[1718158722638,0.1192073,3494.3,3493.4,8.33935141]
[1718158722848,0.1192073,3494.3,3494.2,0.836]
[1718158723006,0.1192073,3494.3,3494.2,1.386]
[1718158723208,0.1192073,3494.3,3494.2,1.54783241]
[1718158723425,4.04571532,3495.7,3494.5,2.86159]
[1718158723426,2.91221266,3495.5,3494.5,2.86159]
[1718158723630,2.3197,3495.5,3495.1,0.836]
[1718158724005,2.3197,3495.5,3495.2,0.16173882]
[1718158724252,2.3197,3495.5,3495.2,0.21895523]
[1718158724558,2.3197,3495.9,3495.4,0.836]
[1718158724709,2.3197,3495.9,3495.7,0.836]
[1718158725050,2.3197,3495.9,3495.8,0.55]
[1718158725255,2.3197,3496.4,3495.8,0.16091658]
[1718158725567,2.3197,3496.4,3495.5,3.69678]
[1718158725718,2.3197,3496.4,3495.9,0.16109411]
[1718158725719,0.517972,3496.3,3495.9,0.16109411]
[1718158725918,0.517972,3496.3,3495.5,3.69678]
[1718158726130,0.517972,3496.3,3496.0,0.16112843]
[1718158726332,0.517972,3496.3,3495.5,3.69678]
[1718158726529,0.517972,3496.3,3496.1,0.16110073]
[1718158726860,0.6533692,3496.2,3495.5,2.86078]
[1718158728416,0.6533692,3496.2,3495.4,7.252]
[1718158729027,0.6533692,3496.2,3495.5,0.55]
[1718158729521,0.6533692,3496.2,3495.4,10.11284]
[1718158729976,0.6533692,3496.2,3495.5,0.55]
[1718158730645,0.6533692,3496.2,3495.6,0.05720743]
[1718158730821,0.6533692,3496.2,3495.6,0.21700876]
[1718158731321,2.3197,3496.4,3495.8,2.86055]
[1718158731536,2.3197,3496.4,3495.9,0.70971819]
[1718158731734,2.3197,3496.4,3495.9,0.15971819]
[1718158732351,2.3197,3496.4,3496.0,0.55]
[1718158732557,2.3197,3496.4,3496.1,0.15966857]
[1718158733244,2.55167,3496.4,3495.8,2.86055]
[1718158733441,2.3197,3496.4,3496.2,0.15962348]
[1718158733739,2.3197,3496.4,3495.8,2.86055]
[1718158733944,2.3197,3496.4,3495.9,0.1597066]
[1718158736487,2.85982,3496.8,3495.9,0.1597066]
[1718158736670,2.85982,3496.8,3495.9,0.21690959]
[1718158737254,2.85982,3496.8,3495.9,0.1597066]
[1718158737478,3.385902,3496.8,3495.9,0.1597066]
[1718158737953,2.3631,3496.7,3496.0,2.91753305]
[1718158738154,2.3631,3496.7,3496.1,3.76656303]
[1718158738487,2.3631,3496.7,3496.2,2.86023]
[1718158738660,2.4164,3497.2,3496.3,3.55]
[1718158738866,2.4164,3497.2,3496.3,4.42127154]
[1718158739553,2.85956,3497.1,3496.3,3.87127154]
[1718158739759,2.4164,3497.0,3496.3,3.87127154]
[1718158739949,2.4164,3497.0,3496.3,3.15931182]
[1718158740300,2.85969,3496.9,3496.3,3.15931182]
[1718158740601,2.4164,3496.8,3496.3,0.15931182]
[1718158740751,2.85953,3497.1,3496.4,0.05720129]
[1718158741085,2.3113,3497.2,3496.5,0.15867702]
[1718158741302,5.17053,3497.5,3496.6,0.05718843]
[1718158741779,5.17053,3497.5,3496.7,0.15862162]
[1718158741983,0.1192073,3497.7,3496.7,0.15862162]
[1718158741984,0.1192073,3497.7,3496.8,3.46689814]
[1718158742195,0.1192073,3497.7,3497.1,2.85947]
[1718158742406,0.1192073,3497.7,3497.3,2.8593]
[1718158742563,0.1192073,3497.7,3497.5,2.85918]
[1718158742749,0.1192073,3497.7,3497.6,0.21474068]
[1718158742960,0.1192073,3497.7,3497.6,3.70756937]
[1718158744753,0.1192073,3497.7,3497.6,3.15756937]
[1718158744959,0.1192073,3497.7,3497.6,0.15756937]
[1718158745173,0.1192073,3497.7,3497.2,3.3074746]
[1718158745348,0.1192073,3497.7,3497.3,1.32401989]
[1718158745877,0.1192073,3497.7,3497.4,0.0571765]
[1718158746080,0.1192073,3497.7,3497.5,0.55]
[1718158746405,0.1192073,3497.7,3497.6,0.15731464]
[1718158746604,0.1192073,3497.7,3497.6,0.70731464]
[1718158746767,0.1192073,3497.7,3497.6,1.48063785]
[1718158754094,0.1192073,3497.7,3497.6,0.93063785]
[1718158754305,0.1192073,3497.7,3497.6,0.15731464]
[1718158754721,0.1192073,3497.7,3497.4,2.85922]
[1718158755016,0.1192073,3497.7,3497.5,0.15629627]
[1718158758881,0.1192073,3497.7,3497.1,3.0]
[1718158758882,2.9782573,3497.7,3497.1,3.0]
[1718158759185,2.9782573,3497.7,3497.6,0.15122961]
[1718158759500,2.85941,3497.3,3497.1,3.0]
[1718158759664,2.85941,3497.3,3497.0,7.252]
[1718158760001,2.2938,3497.6,3497.0,7.252]
[1718158760799,2.2938,3497.6,3497.1,0.15137957]
[1718158762303,2.8592,3497.5,3497.1,0.15137957]
[1718158762673,2.85934,3497.3,3497.1,0.15137957]
[1718158762986,2.2534,3497.2,3497.1,0.15137957]
[1718158764370,2.4476,3497.6,3496.7,2.85982]
[1718158764572,2.4476,3497.6,3496.8,0.20864967]
[1718158765199,2.4476,3497.6,3496.8,0.15146263]
[1718158767073,2.4476,3497.6,3496.9,0.0571871]
[1718158767285,2.4476,3497.6,3496.8,0.15146263]
[1718158767500,2.4476,3497.6,3497.0,0.15140726]
[1718158767666,2.4476,3497.6,3496.6,0.55]
[1718158767667,2.85919,3497.5,3496.9,0.15143494]
[1718158767866,2.85919,3497.5,3496.6,0.55]
[1718158767867,2.85919,3497.5,3497.1,0.15139391]
[1718158768105,2.85919,3497.5,3497.0,0.15140726]
[1718158768310,2.2998,3497.5,3496.6,3.0]
[1718158768608,2.2998,3497.5,3496.1,2.86028]
[1718158768609,0.59711245,3497.4,3496.1,2.86028]
[1718158768771,0.59711245,3497.4,3496.0,3.0]
[1718158768772,2.8594,3497.3,3496.3,2.86016]
[1718158769099,2.8594,3497.3,3496.4,3.05719257]
[1718158769302,2.8594,3497.3,3496.5,2.86]
[1718158769467,2.8594,3497.3,3496.6,3.60718901]
[1718158769671,2.8594,3497.3,3496.7,1.1738289]
[1718158770305,2.8594,3497.3,3496.8,0.05718939]
[1718158770483,2.2998,3497.5,3496.8,0.05718939]
[1718158771513,2.9782673,3497.7,3496.8,0.05718939]
[1718158772208,2.9782673,3497.7,3496.7,1.1738289]
[1718158772508,2.85922,3497.5,3496.8,0.55]
[1718158773090,0.39614702,3497.6,3496.6,3.0]
[1718158773091,2.85945,3497.2,3496.6,3.0]
[1718158773311,2.85945,3497.2,3496.4,2.2711]
[1718158773616,2.85945,3497.2,3496.5,0.82711]
[1718158773814,2.85945,3497.2,3496.5,3.82711]
[1718158775910,2.85945,3497.2,3496.6,0.15252338]
[1718158777018,2.85945,3497.2,3496.7,0.05719273]
[1718158777191,2.85945,3497.2,3496.8,0.15246798]
[1718158777527,2.85945,3497.2,3496.7,0.05719273]
[1718158777725,2.85945,3497.2,3496.9,0.15244029]
[1718158777902,2.85945,3497.2,3496.8,0.15246798]
[1718158778097,2.85945,3497.2,3497.0,0.15241259]
[1718158778298,2.85945,3497.2,3496.7,0.90154027]
[1718158778299,2.85945,3497.2,3496.9,0.15244029]
[1718158778503,2.85945,3497.2,3497.1,0.1523849]
[1718158778710,2.85945,3497.2,3497.0,0.15241259]
[1718158778911,2.85945,3497.2,3497.1,0.1523849]
[1718158779223,2.85945,3497.2,3496.7,0.90154027]
[1718158779422,2.85945,3497.2,3496.8,0.62533301]
[1718158779628,0.1192073,3497.7,3496.8,0.62533301]
[1718158779629,2.8591,3497.6,3496.8,0.62533301]
[1718158780190,2.85942,3497.3,3496.8,0.15246798]
[1718158780515,2.85942,3497.3,3496.6,0.05718775]
[1718158780830,2.85942,3497.3,3496.7,0.55]
[1718158781018,2.85942,3497.3,3496.8,0.20965635]
[1718158781326,2.85942,3497.3,3496.8,0.15246798]
[1718158781692,2.85942,3497.3,3496.7,0.55]
[1718158782011,2.85942,3497.3,3496.8,0.15246798]
[1718158782212,2.85942,3497.3,3496.7,0.723711]
[1718158782527,2.85942,3497.3,3496.8,0.15246798]
[1718158782886,2.85942,3497.3,3496.8,0.05718842]
[1718158783085,2.85942,3497.3,3496.9,0.15235942]
[1718158783921,2.3422,3497.6,3496.9,0.15235942]
[1718158785062,3.1762,3497.6,3496.9,0.15235942]
[1718158785194,2.85922,3497.5,3496.9,0.15235942]
[1718158789897,3.69322,3497.5,3496.9,0.15235942]
[1718158790355,2.85922,3497.5,3496.9,0.15235942]
[1718158795499,2.85922,3497.5,3496.9,0.20954585]
[1718158798026,0.9532073,3497.7,3496.9,0.15235942]
[1718158798225,0.1192073,3497.7,3496.9,0.15235942]
[1718158798425,0.71171996,3497.7,3497.0,0.05718386]
[1718158798600,0.9532073,3497.7,3497.1,0.1520961]
[1718158799102,0.9532073,3497.7,3496.8,0.723711]
[1718158799328,0.59251266,3497.6,3497.2,0.15206841]
[1718158799528,0.59251266,3497.6,3496.8,0.723711]
[1718158799833,0.59251266,3497.6,3496.9,0.55]
[1718158800150,0.59251266,3497.6,3497.0,0.15212379]
[1718158800665,0.59251266,3497.6,3497.1,0.05718391]
[1718158800816,0.71171996,3497.7,3497.2,0.15206841]
[1718158801217,0.1192073,3497.7,3497.2,0.15206841]
[1718158802149,0.1192073,3497.7,3497.3,0.05718391]
[1718158802557,0.1192073,3497.7,3497.4,0.15201303]
[1718158802738,0.1192073,3497.7,3497.5,0.26442969]
[1718158803052,0.1192073,3497.7,3497.6,0.15195766]
[1718158805765,0.1192073,3497.7,3497.3,2.4351]
[1718158806064,0.1192073,3497.7,3497.1,3.53170187]
[1718158806225,0.1192073,3497.7,3497.2,0.70206841]
[1718158806420,0.1192073,3497.7,3497.3,1.03586203]
[1718158806620,2.85911,3497.6,3497.4,0.15187443]
[1718158806843,2.8593,3497.4,3496.8,0.723711]
[1718158807043,2.8593,3497.4,3496.9,0.15201289]
[1718158807646,3.45181266,3497.4,3496.9,0.15201289]
[1718158807855,2.8593,3497.4,3496.9,0.15201289]
[1718158808226,2.8593,3497.4,3497.0,0.17669123]
[1718158808562,2.8593,3497.4,3497.1,0.1519575]
[1718158809762,0.59251266,3497.5,3497.1,0.1519575]
[1718158809963,0.59251266,3497.6,3497.1,0.1519575]
[1718158811187,3.42427629,3497.7,3497.1,0.1519575]
[1718158811188,0.59251266,3497.5,3497.1,0.1519575]
[1718158811531,3.45173266,3497.5,3497.1,0.1519575]
[1718158811964,3.45173266,3497.5,3496.8,0.723711]
[1718158812173,3.45173266,3497.5,3497.2,0.15192981]
[1718158812352,3.45173266,3497.5,3496.8,5.1906761]
[1718158812549,3.45173266,3497.5,3497.3,0.15190212]
[1718158812760,3.45173266,3497.5,3496.8,0.723711]
[1718158812970,3.45173266,3497.5,3497.4,0.15187443]
[1718158813138,3.45173266,3497.5,3496.8,0.723711]
[1718158813338,2.85938,3497.3,3496.9,1.1809711]
[1718158813557,2.85938,3497.3,3496.9,0.15201289]
[1718158813955,3.45189266,3497.3,3496.9,0.15201289]
[1718158814158,0.59251266,3497.4,3497.2,3.1915]
[1718158814481,1.30423262,3497.7,3497.5,2.85918]
[1718158814482,0.1192073,3497.7,3497.5,2.85918]
[1718158814644,0.1192073,3497.7,3497.6,1.53573081]
[1718158814847,0.1192073,3497.7,3497.6,6.21125053]
[1718158815146,0.1192073,3497.7,3497.6,5.61686086]
[1718158816851,0.1192073,3497.7,3497.6,4.78286086]
[1718158818000,0.1192073,3497.7,3497.6,8.37725053]
[1718158818141,0.59251266,3499.1,3498.3,2.3679]
[1718158818343,2.85756,3499.5,3498.4,0.60715908]
[1718158818653,2.85756,3499.5,3498.4,3.75770782]
[1718158818872,2.85756,3499.5,3498.4,6.61610782]
[1718158819062,2.85756,3499.5,3498.4,6.55894874]
[1718158819245,2.85756,3499.5,3498.5,0.05715848]
[1718158819444,0.58528727,3499.4,3498.6,0.15038752]
[1718158820259,2.85756,3499.5,3498.7,0.05716155]
[1718158820473,2.85756,3499.5,3498.8,0.1503808]
[1718158821368,2.85756,3499.5,3498.8,3.1503808]
[1718158821746,2.85756,3499.5,3498.8,0.1503808]
[1718158822184,2.85756,3499.5,3498.6,0.05715833]
[1718158822360,2.85756,3499.5,3498.9,0.15035314]
[1718158822579,2.85756,3499.5,3498.6,0.67239316]
[1718158823188,2.85756,3499.5,3498.7,0.15040846]
[1718158823557,2.85756,3499.5,3498.5,3.0]
[1718158823761,2.85756,3499.5,3498.8,0.14391841]
[1718158823969,2.85756,3499.5,3498.5,3.0]
[1718158824149,2.85756,3499.5,3498.9,0.14389075]
[1718158824349,2.85775,3499.3,3498.5,3.0]
[1718158824572,2.85775,3499.3,3499.0,0.1438631]
[1718158824775,2.4982,3499.2,3498.1,3.0]
[1718158824979,2.4982,3499.2,3498.0,2.85876]
[1718158825181,2.4982,3499.2,3498.2,0.13928179]
[1718158825404,2.4982,3499.2,3498.1,0.55]
[1718158825405,0.5881986,3499.1,3498.1,0.13930946]
[1718158825623,0.5881986,3499.1,3498.3,0.13925412]
[1718158825754,0.5881986,3499.1,3498.0,2.85876]
[1718158825755,2.85796,3499.0,3498.2,0.13923163]
[1718158825953,2.85796,3499.0,3498.4,0.1391763]
[1718158826269,2.85796,3499.0,3498.5,0.13914863]
[1718158826608,2.85796,3499.0,3498.1,3.05716696]
[1718158826769,2.59251266,3499.8,3498.6,2.56242097]
[1718158826770,2.85744,3499.7,3498.6,2.56242097]
[1718158826972,2.4762,3499.6,3498.5,2.85836]
[1718158827289,2.4762,3499.6,3498.6,0.13912097]
[1718158828500,2.4762,3499.6,3498.6,0.1962796]
[1718158828680,2.4762,3499.6,3498.7,0.30546396]
[1718158828861,2.4762,3499.6,3498.8,0.13889851]
[1718158830676,2.85744,3499.7,3498.7,2.85815]
[1718158830999,2.85744,3499.7,3498.8,0.13907533]
[1718158831630,2.85744,3499.7,3498.9,2.85799]
[1718158831758,3.378144,3499.7,3498.9,2.85799]
[1718158831964,3.378144,3499.7,3499.0,0.16889375]
[1718158835702,3.378144,3499.7,3498.6,0.05715713]
[1718158835866,2.85744,3499.7,3499.1,0.16866432]
[1718158836062,3.30434004,3500.1,3498.9,2.2748]
[1718158836375,2.2688,3500.5,3499.3,2.85768]
[1718158836376,2.85678,3500.5,3499.3,2.85768]
[1718158836578,2.85678,3500.5,3499.5,2.85752]
[1718158836800,2.85678,3500.5,3499.6,0.05714359]
[1718158836977,2.85678,3500.5,3499.6,1.10751291]
[1718158837586,3.230658,3500.5,3499.6,0.22551291]
[1718158837896,0.882,3500.4,3499.6,0.16836932]
[1718158838103,0.882,3500.4,3499.6,0.2255129]
[1718158838294,0.882,3500.2,3499.6,0.16836932]
[1718158838970,3.230658,3500.5,3499.6,0.16836932]
[1718158839171,3.230658,3500.5,3499.7,2.3471]
[1718158839600,3.230658,3500.5,3499.8,0.1678704]
[1718158841212,3.230658,3500.5,3499.6,3.05714278]
[1718158841368,3.230658,3500.5,3499.9,0.16148643]
[1718158841568,0.3230658,3500.4,3499.6,3.0]
[1718158842130,0.3230658,3500.4,3499.7,0.16154341]
[1718158843122,2.3547,3500.2,3499.7,0.16154341]
[1718158843480,2.3547,3500.2,3499.2,3.0]
[1718158843686,2.85706,3500.1,3499.3,0.1616803]
[1718158845260,2.85678,3500.5,3499.4,5.90392]
[1718158845460,2.85678,3500.5,3499.5,3.21890395]
[1718158846962,2.85678,3500.5,3499.6,2.85744]
[1718158847282,2.85678,3500.5,3499.7,0.21887875]
[1718158847625,2.85646,3500.9,3499.8,2.8573]
[1718158847830,3.60070673,3500.9,3499.9,0.16159514]
[1718158848766,2.85669,3500.6,3499.9,0.16159514]
[1718158849269,0.74424673,3500.9,3500.0,0.16156665]
[1718158849270,2.85682,3500.4,3500.0,0.16156665]
[1718158849562,2.85682,3500.4,3499.5,10.252]
[1718158849765,2.85682,3500.4,3500.1,0.16153816]
[1718158849936,0.511392,3500.3,3499.5,10.252]
[1718158850263,2.85682,3500.4,3499.5,10.252]
[1718158850443,2.85682,3500.4,3499.6,0.16171017]
[1718158854244,0.00534541,3500.1,3499.6,0.16171017]
[1718158855844,2.86243541,3500.1,3499.6,0.16171017]
[1718158859870,2.86243541,3500.1,3499.7,0.16169312]
[1718158860074,2.86243541,3500.1,3499.4,3.0463]
[1718158860275,2.86243541,3500.1,3499.5,0.64635982]
[1718158860781,2.86243541,3500.1,3499.5,0.16175012]
[1718158860948,3.69543541,3500.1,3499.5,0.16175012]
[1718158861350,2.86243541,3500.1,3499.5,0.16175012]
[1718158864395,3.69543541,3500.1,3499.5,0.16175012]
[1718158864693,2.85732,3499.8,3499.5,0.16175012]
[1718158864894,2.85732,3499.8,3499.1,7.252]
[1718158864895,4.46967559,3499.8,3499.1,7.252]
[1718158865095,2.85732,3499.8,3499.2,0.1619872]
[1718158865295,2.85732,3499.8,3499.0,0.833]
[1718158865482,2.85732,3499.8,3499.1,0.16201571]
[1718158867687,2.85732,3499.8,3498.9,3.69103]
[1718158867898,2.85732,3499.8,3499.0,0.16204422]
[1718158868067,2.85732,3499.8,3499.0,0.90890554]
[1718158869101,2.85732,3499.8,3499.1,2.4923]
[1718158869406,0.00534541,3500.1,3499.3,0.833]
[1718158869812,0.00534541,3500.1,3499.4,0.16193019]
[1718158870381,0.00534541,3500.1,3499.6,2.4923]
[1718158870691,0.00534541,3500.1,3499.7,0.51629146]
[1718158871065,0.833,3499.8,3499.7,0.16185363]
[1718158871303,0.833,3499.8,3498.9,6.08668967]
[1718158871509,0.833,3499.8,3499.0,0.99507459]
[1718158871739,0.00534541,3500.1,3499.0,0.2192305]
[1718158871877,0.00534541,3500.1,3499.5,2.3846]
[1718158872078,0.00534541,3500.1,3499.6,0.16187319]
[1718158873773,2.86245541,3500.1,3499.6,0.16187319]
[1718158874089,0.833,3500.0,3499.1,2.4218]
[1718158874298,0.833,3500.0,3499.2,0.1620101]
[1718158875320,2.85733,3499.8,3499.2,0.1620101]
[1718158875534,0.833,3499.7,3499.2,0.1620101]
[1718158875680,0.833,3499.7,3498.9,0.59438967]
[1718158875880,0.833,3499.7,3498.9,2.10946279]
[1718158876081,0.833,3499.7,3499.0,0.16206712]
[1718158876828,2.85733,3499.8,3499.0,0.16206712]
[1718158877028,0.833,3499.7,3499.0,0.16206712]
[1718158878209,0.833,3499.1,3499.0,0.16206712]
[1718158878531,2.85766,3499.4,3499.0,0.16206712]
[1718158878532,2.85779,3499.2,3499.0,0.16206712]
[1718158878761,2.85802,3499.0,3498.4,1.143129]
[1718158878965,2.85802,3499.0,3498.2,7.252]
[1718158879113,3.45053266,3499.0,3497.9,0.59438967]
[1718158879294,2.85802,3499.0,3498.0,2.54430274]
[1718158879632,3.45053266,3499.0,3498.1,0.16252409]
[1718158880192,2.85802,3499.0,3498.1,0.16252409]
[1718158881300,2.85802,3499.0,3498.1,3.16252409]
[1718158881493,2.85802,3499.0,3498.1,4.26106677]
[1718158883229,2.85802,3499.0,3498.2,0.05716789]
[1718158883397,2.85768,3499.4,3498.4,2.3359]
[1718158883727,2.85768,3499.4,3498.5,3.57105339]
[1718158883907,2.85768,3499.4,3498.6,0.64569534]
[1718158884425,2.85768,3499.4,3498.7,0.21981462]
[1718158885029,3.44985266,3499.8,3498.8,0.05715721]
[1718158885397,2.85734,3499.8,3498.9,0.16301716]
[1718158885595,3.44985266,3499.8,3498.9,0.16301716]
[1718158885799,2.85749,3499.6,3498.5,3.40834]
[1718158886034,2.85749,3499.6,3499.0,0.16282263]
[1718158886332,2.85749,3499.6,3498.5,3.40834]
[1718158886333,2.85749,3499.6,3499.1,0.16279412]
[1718158886520,2.85774,3499.3,3498.1,14.20920268]
[1718158886844,2.85774,3499.3,3498.2,0.71305077]
[1718158887240,2.85774,3499.3,3498.2,0.16305077]
[1718158891710,3.03741266,3499.5,3498.2,0.16305077]
[1718158891711,2.85798,3499.0,3498.2,0.16305077]
[1718158895055,0.59251266,3499.3,3498.2,0.16305077]
[1718158895270,2.85821,3498.7,3498.2,0.16305077]
[1718158895435,0.39261817,3499.2,3498.2,0.16305077]
[1718158895436,2.85846,3498.4,3498.2,0.16305077]
[1718158895761,2.85846,3498.4,3498.3,0.15781088]
[1718158896120,2.85846,3498.4,3497.7,1.143347]
[1718158896319,2.85846,3498.4,3497.8,0.21511411]
[1718158896526,2.85815,3498.8,3497.9,2.85879]
[1718158896760,2.85815,3498.8,3498.0,0.57960916]
[1718158896962,2.85786,3499.2,3498.1,5.29610647]
[1718158897126,0.59251266,3499.5,3498.5,2.3803]